fUSD/lending_fUSD_20260625
["ID","MTS","AMOUNT","RATE_DAILY","PERIOD"]
[426430991,1782383655000,-386.44734697,0.0002655,2]
[426430989,1782383655000,-413.56771676,0.0002655,2]
[426430990,1782383655000,-151.81388328,0.0002655,2]
[426430993,1782383655000,-178.96183778,0.0002655,2]
[426430953,1782383655000,-169.91798892,0.00026453,2]
[426430981,1782383655000,-160.2793327,0.0002655,2]
[426430976,1782383655000,-4974.45996912,0.00026526,2]
[426430987,1782383655000,-169.66575222,0.0002655,2]
[426430974,1782383655000,-548.58394181,0.00026521,2]
[426430955,1782383655000,-621.82922914,0.00026453,2]
[426430973,1782383655000,-695.44485089,0.00026518,2]
[426430957,1782383655000,-167.34156208,0.00026453,2]
[426430959,1782383655000,-332.88179744,0.00026453,2]
[426430958,1782383655000,-530.8267573,0.00026453,2]
[426430960,1782383655000,-269.46162093,0.00026453,2]
[426430962,1782383655000,-726.34893925,0.00026453,2]
[426430963,1782383655000,-436.97744075,0.00026453,2]
[426430961,1782383655000,-877.0446453,0.00026453,2]
[426430956,1782383655000,-518.00698553,0.00026453,2]
[426430970,1782383655000,-742.17398761,0.00026454,2]
[426430964,1782383655000,-675.6103004,0.00026453,2]
[426430969,1782383655000,-676.39217334,0.00026453,2]
[426430965,1782383655000,-705.58609965,0.00026453,2]
[426430968,1782383655000,-164.22733682,0.00026453,2]
[426430967,1782383655000,-667.16181879,0.00026453,2]
[426430971,1782383655000,-320.77985317,0.00026454,2]
[426430966,1782383655000,-493.57381757,0.00026453,2]
[426430972,1782383655000,-374.61083209,0.00026518,2]
[426431034,1782383656000,-409.30711673,0.0002655,2]
[426431033,1782383656000,-160.28100749,0.0002655,2]
[426431032,1782383656000,-200.35527559,0.0002655,2]
[426431031,1782383656000,-166.06900376,0.0002655,2]
[426431028,1782383656000,-875.95948189,0.0002655,2]
[426431030,1782383656000,-599.57629781,0.0002655,2]
[426431022,1782383656000,-458.35914021,0.0002655,2]
[426431024,1782383656000,-952.8555024,0.0002655,2]
[426431035,1782383656000,-160.24359581,0.0002655,2]
[426431027,1782383656000,-780.55636809,0.0002655,2]
[426431029,1782383656000,-562.42774378,0.0002655,2]
[426431036,1782383656000,-465.97640955,0.0002655,2]
[426431046,1782383656000,-696.61137872,0.0002655,2]
[426431037,1782383656000,-427.07586005,0.0002655,2]
[426431040,1782383656000,-177.27531171,0.0002655,2]
[426431039,1782383656000,-260.83643938,0.0002655,2]
[426431041,1782383656000,-460.42571651,0.0002655,2]
[426431042,1782383656000,-1329.18797768,0.0002655,2]
[426431051,1782383656000,-746.98355379,0.0002655,2]
[426431049,1782383656000,-186.67240603,0.0002655,2]
[426431048,1782383656000,-160.7132777,0.0002655,2]
[426431045,1782383656000,-458.47862072,0.0002655,2]
[426431044,1782383656000,-571.85051008,0.0002655,2]
[426431047,1782383656000,-210.81274776,0.0002655,2]
[426431023,1782383656000,-743.42393024,0.0002655,2]
[426431038,1782383656000,-160.27151097,0.0002655,2]
[426431025,1782383656000,-1240.8812524,0.0002655,2]
[426431001,1782383656000,-773.36452234,0.0002655,2]
[426431021,1782383656000,-312.09861416,0.0002655,2]
[426430994,1782383656000,-434.32580055,0.0002655,2]
[426430996,1782383656000,-403.0731638,0.0002655,2]
[426430995,1782383656000,-475.19512279,0.0002655,2]
[426430997,1782383656000,-331.46531212,0.0002655,2]
[426430998,1782383656000,-160.28253404,0.0002655,2]
[426431000,1782383656000,-200.84098654,0.0002655,2]
[426430999,1782383656000,-160.28257499,0.0002655,2]
[426431002,1782383656000,-165.7548506,0.0002655,2]
[426431003,1782383656000,-160.2778499,0.0002655,2]
[426431004,1782383656000,-160.2778022,0.0002655,2]
[426431005,1782383656000,-449.1290013,0.0002655,2]
[426431007,1782383656000,-160.27138776,0.0002655,2]
[426431026,1782383656000,-1009.53565513,0.0002655,2]
[426431006,1782383656000,-676.23520462,0.0002655,2]
[426431015,1782383656000,-161.3104231,0.0002655,2]
[426431012,1782383656000,-168.74185422,0.0002655,2]
[426431009,1782383656000,-444.81277671,0.0002655,2]
[426431011,1782383656000,-213.80396922,0.0002655,2]
[426431010,1782383656000,-316.89624098,0.0002655,2]
[426431013,1782383656000,-169.11627441,0.0002655,2]
[426431014,1782383656000,-165.24014991,0.0002655,2]
[426431017,1782383656000,-174.04053203,0.0002655,2]
[426431016,1782383656000,-164.96101625,0.0002655,2]
[426431018,1782383656000,-541.09693253,0.0002655,2]
[426431019,1782383656000,-553.02252931,0.0002655,2]
[426431020,1782383656000,-696.55736849,0.0002655,2]
[426431008,1782383656000,-166.35170877,0.0002655,2]
[426431050,1782383656000,-160.26978715,0.0002655,2]
[426431043,1782383656000,-327.84048675,0.0002655,2]
[426431053,1782383656000,-695.72784377,0.0002655,2]
[426431086,1782383656000,-162.79589804,0.0002655,2]
[426431082,1782383656000,-792.13465159,0.0002655,2]
[426431085,1782383656000,-687.34289241,0.0002655,2]
[426431088,1782383656000,-655.08208852,0.0002655,2]
[426431091,1782383656000,-219.38486352,0.0002655,2]
[426431089,1782383656000,-630.73676836,0.0002655,2]
[426431090,1782383656000,-836.44495449,0.0002655,2]
[426431098,1782383656000,-944.0,0.00026667,5]
[426431093,1782383656000,-643.45546867,0.0002655,2]
[426431092,1782383656000,-628.22460767,0.0002655,2]
[426431097,1782383656000,-420.0,0.00026643,2]
[426431095,1782383656000,-1011.73511133,0.00026623,2]
[426431083,1782383656000,-319.73299066,0.0002655,2]
[426431096,1782383656000,-329.0,0.00026625,2]
[426431100,1782383656000,-467.0,0.00026685,2]
[426431099,1782383656000,-420.0,0.00026669,2]
[426431102,1782383656000,-213.0,0.00026728,2]
[426431101,1782383656000,-467.0,0.00026724,2]
[426431103,1782383656000,-2507603.92093292,0.000268,2]
[426431106,1782383656000,-155.957992,0.000268,2]
[426431107,1782383656000,-151.0,0.000268,2]
[426431108,1782383656000,-151.0,0.000268,2]
[426431105,1782383656000,-151.0,0.000268,2]
[426431104,1782383656000,-111519.72651448,0.000268,2]
[426431109,1782383656000,-151.0,0.000268,2]
[426431110,1782383656000,-151.0,0.000268,2]
[426431094,1782383656000,-420.0,0.00026555,2]
[426431081,1782383656000,-801.12609496,0.0002655,2]
[426431052,1782383656000,-690.92572857,0.0002655,2]
[426431087,1782383656000,-726.85990225,0.0002655,2]
[426431054,1782383656000,-200.83958872,0.0002655,2]
[426431055,1782383656000,-594.35293639,0.0002655,2]
[426431056,1782383656000,-698.1678654,0.0002655,2]
[426431057,1782383656000,-706.80366166,0.0002655,2]
[426431058,1782383656000,-705.34918092,0.0002655,2]
[426431059,1782383656000,-539.29067167,0.0002655,2]
[426431060,1782383656000,-450.11437616,0.0002655,2]
[426431084,1782383656000,-661.60813333,0.0002655,2]
[426431061,1782383656000,-586.76049756,0.0002655,2]
[426431062,1782383656000,-425.6464827,0.0002655,2]
[426431064,1782383656000,-160.60777993,0.0002655,2]
[426431067,1782383656000,-160.2777222,0.0002655,2]
[426431066,1782383656000,-360.34266976,0.0002655,2]
[426431063,1782383656000,-159.92647042,0.0002655,2]
[426431068,1782383656000,-160.27131047,0.0002655,2]
[426431065,1782383656000,-199.94871593,0.0002655,2]
[426431077,1782383656000,-326.26155797,0.0002655,2]
[426431076,1782383656000,-651.44257535,0.0002655,2]
[426431079,1782383656000,-635.77914327,0.0002655,2]
[426431078,1782383656000,-641.43350231,0.0002655,2]
[426431075,1782383656000,-540.71321699,0.0002655,2]
[426431080,1782383656000,-306.41138013,0.0002655,2]
[426431071,1782383656000,-644.7401809,0.0002655,2]
[426431070,1782383656000,-748.74334664,0.0002655,2]
[426431073,1782383656000,-649.78568424,0.0002655,2]
[426431069,1782383656000,-528.43496922,0.0002655,2]
[426431072,1782383656000,-630.85338371,0.0002655,2]
[426431074,1782383656000,-667.59990953,0.0002655,2]
[426431151,1782383657000,-933.72944223,0.00027113,2]
[426431156,1782383657000,-805.92522613,0.00027113,2]
[426431148,1782383657000,-1094.94935236,0.00027113,2]
[426431147,1782383657000,-975.69546011,0.00027113,2]
[426431149,1782383657000,-1661.4849721,0.00027113,2]
[426431139,1782383657000,-250.0,0.000271,2]
[426431140,1782383657000,-787.17651846,0.00027113,2]
[426431145,1782383657000,-1551.1015655,0.00027113,2]
[426431142,1782383657000,-767.20844948,0.00027113,2]
[426431144,1782383657000,-1191.069378,0.00027113,2]
[426431146,1782383657000,-1261.91956891,0.00027113,2]
[426431150,1782383657000,-870.7642234,0.00027113,2]
[426431168,1782383657000,-818.85261065,0.00027113,2]
[426431155,1782383657000,-935.9291833,0.00027113,2]
[426431154,1782383657000,-883.50457707,0.00027113,2]
[426431152,1782383657000,-863.65716072,0.00027113,2]
[426431157,1782383657000,-924.54633983,0.00027113,2]
[426431159,1782383657000,-788.56672963,0.00027113,2]
[426431161,1782383657000,-834.49988691,0.00027113,2]
[426431158,1782383657000,-808.42961531,0.00027113,2]
[426431160,1782383657000,-812.2321053,0.00027113,2]
[426431162,1782383657000,-801.79187789,0.00027113,2]
[426431163,1782383657000,-794.72392908,0.00027113,2]
[426431167,1782383657000,-859.17861552,0.00027113,2]
[426431164,1782383657000,-1001.4076187,0.00027113,2]
[426431141,1782383657000,-895.31104134,0.00027113,2]
[426431153,1782383657000,-872.70983175,0.00027113,2]
[426431138,1782383657000,-869.30606361,0.0002708,2]
[426431124,1782383657000,-155.19,0.00027,2]
[426431135,1782383657000,-844.5128755,0.00027015,2]
[426431165,1782383657000,-990.16831449,0.00027113,2]
[426431112,1782383657000,-151.0,0.000268,2]
[426431111,1782383657000,-151.0,0.000268,2]
[426431113,1782383657000,-226.434564,0.000268,2]
[426431114,1782383657000,-200.510323,0.000268,2]
[426431115,1782383657000,-151.0,0.000268,2]
[426431117,1782383657000,-4974.45996919,0.000268,2]
[426431121,1782383657000,-155.22,0.00027,2]
[426431118,1782383657000,-250.0,0.00027,2]
[426431116,1782383657000,-172.290922,0.000268,2]
[426431122,1782383657000,-155.19,0.00027,2]
[426431119,1782383657000,-1056.96069608,0.00027,2]
[426431143,1782383657000,-879.40120057,0.00027113,2]
[426431120,1782383657000,-530.0,0.00027,2]
[426431125,1782383657000,-155.19,0.00027,2]
[426431126,1782383657000,-5000.0,0.00027001,2]
[426431133,1782383657000,-941.74892539,0.00027015,2]
[426431127,1782383657000,-5000.0,0.00027001,2]
[426431128,1782383657000,-5000.0,0.00027001,2]
[426431129,1782383657000,-5000.0,0.00027001,2]
[426431132,1782383657000,-825.71852115,0.00027015,2]
[426431130,1782383657000,-1083.42685138,0.00027015,2]
[426431131,1782383657000,-1020.43945386,0.00027015,2]
[426431134,1782383657000,-907.93617406,0.00027015,2]
[426431137,1782383657000,-785.19337865,0.00027074,2]
[426431136,1782383657000,-845.49021668,0.00027015,2]
[426431123,1782383657000,-155.19,0.00027,2]
[426431166,1782383657000,-827.01016666,0.00027113,2]
[426431170,1782383657000,-804.31933584,0.00027113,2]
[426431224,1782383657000,-1864.454694,0.00027397,2]
[426431199,1782383657000,-151.0,0.00027397,2]
[426431203,1782383657000,-151.0,0.00027397,2]
[426431204,1782383657000,-251.043026,0.00027397,2]
[426431202,1782383657000,-151.0,0.00027397,2]
[426431201,1782383657000,-151.0,0.00027397,2]
[426431206,1782383657000,-151.0,0.00027397,2]
[426431208,1782383657000,-151.0,0.00027397,2]
[426431207,1782383657000,-151.0,0.00027397,2]
[426431209,1782383657000,-151.0,0.00027397,2]
[426431217,1782383657000,-1864.454694,0.00027397,2]
[426431210,1782383657000,-151.0,0.00027397,2]
[426431212,1782383657000,-1026.01,0.00027397,2]
[426431200,1782383657000,-151.0,0.00027397,2]
[426431214,1782383657000,-29907.74,0.00027397,10]
[426431215,1782383657000,-24923.12,0.00027397,10]
[426431213,1782383657000,-944.33,0.00027397,2]
[426431218,1782383657000,-1864.454694,0.00027397,2]
[426431219,1782383657000,-20769.27,0.00027397,10]
[426431221,1782383657000,-1864.454694,0.00027397,2]
[426431220,1782383657000,-1864.454694,0.00027397,2]
[426431223,1782383657000,-1864.454694,0.00027397,2]
[426431222,1782383657000,-1864.454694,0.00027397,2]
[426431225,1782383657000,-197.59423111,0.00027397,2]
[426431227,1782383657000,-592.78269334,0.00027397,2]
[426431169,1782383657000,-1045.55619311,0.00027113,2]
[426431226,1782383657000,-395.18846223,0.00027397,2]
[426431216,1782383657000,-1864.454694,0.00027397,2]
[426431198,1782383657000,-151.0,0.00027397,2]
[426431211,1782383657000,-300.0,0.00027397,2]
[426431197,1782383657000,-151.0,0.00027397,2]
[426431205,1782383657000,-151.0,0.00027397,2]
[426431172,1782383657000,-3420.0,0.00027269,10]
[426431180,1782383657000,-150.0,0.00027397,2]
[426431173,1782383657000,-753.55,0.000273,7]
[426431175,1782383657000,-4200.4084576,0.0002739,2]
[426431174,1782383657000,-180.616,0.00027348,16]
[426431176,1782383657000,-446.27116661,0.00027397,7]
[426431177,1782383657000,-259.72981897,0.00027397,7]
[426431178,1782383657000,-552.91714033,0.00027397,2]
[426431179,1782383657000,-2225.823,0.00027397,16]
[426431181,1782383657000,-500.0,0.00027397,2]
[426431182,1782383657000,-500.0,0.00027397,2]
[426431183,1782383657000,-500.0,0.00027397,2]
[426431171,1782383657000,-2000.0,0.00027143,7]
[426431185,1782383657000,-500.0,0.00027397,2]
[426431184,1782383657000,-500.0,0.00027397,2]
[426431194,1782383657000,-195.33695911,0.00027397,2]
[426431195,1782383657000,-1500.0,0.00027397,2]
[426431193,1782383657000,-500.0,0.00027397,2]
[426431192,1782383657000,-150.0,0.00027397,2]
[426431191,1782383657000,-638.54236203,0.00027397,2]
[426431196,1782383657000,-530.57,0.00027397,2]
[426431190,1782383657000,-500.0,0.00027397,2]
[426431189,1782383657000,-500.0,0.00027397,2]
[426431187,1782383657000,-500.0,0.00027397,2]
[426431186,1782383657000,-500.0,0.00027397,2]
[426431188,1782383657000,-500.0,0.00027397,2]
[426431267,1782383658000,-1130.09871047,0.00027856,2]
[426431264,1782383658000,-1300.11222165,0.00027856,2]
[426431265,1782383658000,-1224.52734463,0.00027856,2]
[426431257,1782383658000,-205.41279694,0.000275,2]
[426431262,1782383658000,-68267.8299512,0.00027763,2]
[426431261,1782383658000,-1113.34417476,0.00027642,7]
[426431263,1782383658000,-970.4915981,0.00027856,2]
[426431259,1782383658000,-1412.0,0.000275,7]
[426431258,1782383658000,-500.0,0.000275,7]
[426431266,1782383658000,-990.86222538,0.00027856,2]
[426431260,1782383658000,-177.56,0.00027507,2]
[426431270,1782383658000,-920.65013938,0.00027957,2]
[426431275,1782383658000,-1170.83455214,0.00027957,2]
[426431269,1782383658000,-1074.37324961,0.00027957,2]
[426431274,1782383658000,-1514.30348269,0.00027957,2]
[426431271,1782383658000,-1055.28144069,0.00027957,2]
[426431273,1782383658000,-1861.3218786,0.00027957,2]
[426431272,1782383658000,-1429.2832536,0.00027957,2]
[426431277,1782383658000,-1993.78196652,0.00027957,2]
[426431276,1782383658000,-1313.93922283,0.00027957,2]
[426431278,1782383658000,-1044.91706808,0.00027957,2]
[426431280,1782383658000,-1036.38859286,0.00027957,2]
[426431286,1782383658000,-1001.39986429,0.00027957,2]
[426431279,1782383658000,-1120.47533068,0.00027957,2]
[426431255,1782383658000,-5224.74,0.000274,2]
[426431268,1782383658000,-1014.58826002,0.00027856,2]
[426431256,1782383658000,-180.0,0.000274,2]
[426431281,1782383658000,-1047.2517981,0.00027957,2]
[426431253,1782383658000,-5224.74,0.000274,2]
[426431229,1782383658000,-199.65723673,0.00027397,2]
[426431228,1782383658000,-320.58920084,0.00027397,2]
[426431230,1782383658000,-399.31447346,0.00027397,2]
[426431233,1782383658000,-509.52281599,0.00027397,2]
[426431231,1782383658000,-169.84093866,0.00027397,2]
[426431232,1782383658000,-339.68187732,0.00027397,2]
[426431234,1782383658000,-679.36375465,0.00027397,2]
[426431235,1782383658000,-598.97171019,0.00027397,2]
[426431236,1782383658000,-798.62894692,0.00027397,2]
[426431237,1782383658000,-214.21015998,0.00027397,7]
[426431238,1782383658000,-259.72981897,0.00027397,7]
[426431239,1782383658000,-4334.32266083,0.00027397,2]
[426431240,1782383658000,-1835.15,0.000274,2]
[426431242,1782383658000,-1000.0,0.000274,2]
[426431241,1782383658000,-537.58,0.000274,7]
[426431244,1782383658000,-1000.0,0.000274,2]
[426431243,1782383658000,-1000.0,0.000274,2]
[426431245,1782383658000,-1000.0,0.000274,2]
[426431247,1782383658000,-1000.0,0.000274,2]
[426431248,1782383658000,-1000.0,0.000274,2]
[426431246,1782383658000,-1000.0,0.000274,2]
[426431249,1782383658000,-1000.0,0.000274,2]
[426431251,1782383658000,-5224.74,0.000274,2]
[426431252,1782383658000,-5224.74,0.000274,2]
[426431250,1782383658000,-1634.53,0.000274,2]
[426431254,1782383658000,-5224.74,0.000274,2]
[426431284,1782383658000,-946.28007556,0.00027957,2]
[426431341,1782383658000,-452.33867,0.00028671,7]
[426431283,1782383658000,-967.11027135,0.00027957,2]
[426431319,1782383658000,-1361.0,0.00028258,2]
[426431320,1782383658000,-1277.0,0.00028258,2]
[426431315,1782383658000,-150.0,0.00028248,2]
[426431317,1782383658000,-150.0,0.00028248,2]
[426431316,1782383658000,-150.0,0.00028248,2]
[426431321,1782383658000,-1230.0,0.00028258,2]
[426431322,1782383658000,-1000.0,0.00028315,2]
[426431324,1782383658000,-376.207403,0.00028356,7]
[426431323,1782383658000,-452.33867,0.00028356,7]
[426431325,1782383658000,-436.174988,0.00028356,7]
[426431326,1782383658000,-422.14557272,0.00028356,2]
[426431331,1782383658000,-5000.0,0.00028377,2]
[426431328,1782383658000,-5130.0,0.0002836,10]
[426431327,1782383658000,-1684.0,0.00028356,2]
[426431330,1782383658000,-5000.0,0.00028377,2]
[426431329,1782383658000,-5000.0,0.00028377,2]
[426431333,1782383658000,-5000.0,0.00028377,2]
[426431334,1782383658000,-675.0,0.00028507,2]
[426431336,1782383658000,-1759.026565,0.00028575,2]
[426431335,1782383658000,-1827.03054203,0.00028571,7]
[426431338,1782383658000,-755.54102511,0.00028658,2]
[426431339,1782383658000,-377.77051255,0.00028658,2]
[426431337,1782383658000,-286452.60639,0.00028575,2]
[426431340,1782383658000,-188.88525628,0.00028658,2]
[426431285,1782383658000,-974.67852636,0.00027957,2]
[426431318,1782383658000,-383.0,0.00028258,2]
[426431314,1782383658000,-150.0,0.00028248,2]
[426431332,1782383658000,-5000.0,0.00028377,2]
[426431312,1782383658000,-3562.0,0.00028158,2]
[426431282,1782383658000,-1123.11501996,0.00027957,2]
[426431313,1782383658000,-6084.0,0.00028158,2]
[426431287,1782383658000,-962.15025346,0.00027957,2]
[426431288,1782383658000,-953.6687149,0.00027957,2]
[426431289,1782383658000,-1188.20197739,0.00027957,2]
[426431290,1782383658000,-992.41219999,0.00027957,2]
[426431291,1782383658000,-1031.01433862,0.00027957,2]
[426431292,1782383658000,-982.62313277,0.00027957,2]
[426431293,1782383658000,-998.28618365,0.00027959,2]
[426431295,1782383658000,-108318.51959842,0.00028,5]
[426431296,1782383658000,-160.0,0.00028,2]
[426431297,1782383658000,-643.0,0.00028,2]
[426431298,1782383658000,-600.0,0.00028,2]
[426431294,1782383658000,-849.20469331,0.00027959,2]
[426431306,1782383658000,-500.0,0.00028155,2]
[426431300,1782383658000,-500.0,0.00028155,2]
[426431301,1782383658000,-500.0,0.00028155,2]
[426431302,1782383658000,-500.0,0.00028155,2]
[426431303,1782383658000,-500.0,0.00028155,2]
[426431309,1782383658000,-500.0,0.00028155,2]
[426431305,1782383658000,-500.0,0.00028155,2]
[426431304,1782383658000,-500.0,0.00028155,2]
[426431308,1782383658000,-500.0,0.00028155,2]
[426431307,1782383658000,-500.0,0.00028155,2]
[426431299,1782383658000,-160.0,0.00028088,3]
[426431311,1782383658000,-484.12055807,0.00028155,2]
[426431310,1782383658000,-500.0,0.00028155,2]
[426431382,1782383659000,-500.0,0.00029,2]
[426431384,1782383659000,-500.0,0.00029,2]
[426431375,1782383659000,-168.0,0.00029,2]
[426431383,1782383659000,-500.0,0.00029,2]
[426431380,1782383659000,-500.0,0.00029,2]
[426431381,1782383659000,-500.0,0.00029,2]
[426431374,1782383659000,-1598.90004572,0.00029,2]
[426431379,1782383659000,-500.0,0.00029,2]
[426431376,1782383659000,-500.0,0.00029,2]
[426431377,1782383659000,-500.0,0.00029,2]
[426431385,1782383659000,-500.0,0.00029,2]
[426431378,1782383659000,-500.0,0.00029,2]
[426431386,1782383659000,-500.0,0.00029,2]
[426431399,1782383659000,-500.0,0.00029,2]
[426431388,1782383659000,-500.0,0.00029,2]
[426431389,1782383659000,-500.0,0.00029,2]
[426431394,1782383659000,-500.0,0.00029,2]
[426431390,1782383659000,-500.0,0.00029,2]
[426431391,1782383659000,-500.0,0.00029,2]
[426431392,1782383659000,-500.0,0.00029,2]
[426431393,1782383659000,-500.0,0.00029,2]
[426431396,1782383659000,-500.0,0.00029,2]
[426431395,1782383659000,-500.0,0.00029,2]
[426431397,1782383659000,-500.0,0.00029,2]
[426431398,1782383659000,-500.0,0.00029,2]
[426431401,1782383659000,-500.0,0.00029,2]
[426431371,1782383659000,-1003.91954695,0.00029,2]
[426431387,1782383659000,-500.0,0.00029,2]
[426431373,1782383659000,-220.37104519,0.00029,2]
[426431342,1782383659000,-298.42,0.00028693,7]
[426431370,1782383659000,-10377.2619394,0.00029,2]
[426431405,1782383659000,-500.0,0.00029,2]
[426431344,1782383659000,-150.0,0.00028767,2]
[426431343,1782383659000,-152.0,0.00028704,5]
[426431345,1782383659000,-500.0,0.00028767,2]
[426431346,1782383659000,-219.71994368,0.00028767,2]
[426431347,1782383659000,-179.11178271,0.00028767,2]
[426431348,1782383659000,-160.0,0.000288,3]
[426431351,1782383659000,-436.174988,0.00028829,7]
[426431349,1782383659000,-708.0,0.00028801,5]
[426431350,1782383659000,-1197.94342037,0.00028801,2]
[426431354,1782383659000,-537.58,0.000289,7]
[426431352,1782383659000,-150.0,0.00028855,2]
[426431353,1782383659000,-150.0,0.00028855,2]
[426431372,1782383659000,-444.87733802,0.00029,2]
[426431355,1782383659000,-753.55,0.000289,7]
[426431357,1782383659000,-528.0,0.00028954,2]
[426431360,1782383659000,-200.0,0.00029,2]
[426431359,1782383659000,-200.0,0.00029,2]
[426431358,1782383659000,-452.33867,0.00028986,7]
[426431362,1782383659000,-200.0,0.00029,2]
[426431369,1782383659000,-191.83354734,0.00029,2]
[426431361,1782383659000,-200.0,0.00029,2]
[426431368,1782383659000,-411.85117864,0.00029,2]
[426431363,1782383659000,-200.0,0.00029,2]
[426431365,1782383659000,-331.34,0.00029,2]
[426431364,1782383659000,-200.0,0.00029,2]
[426431366,1782383659000,-511.08205022,0.00029,2]
[426431367,1782383659000,-301.60325398,0.00029,2]
[426431356,1782383659000,-331.21252536,0.00028919,2]
[426431400,1782383659000,-500.0,0.00029,2]
[426431453,1782383659000,-500.0,0.00029,7]
[426431404,1782383659000,-500.0,0.00029,2]
[426431444,1782383659000,-500.0,0.00029,7]
[426431438,1782383659000,-500.0,0.00029,7]
[426431437,1782383659000,-500.0,0.00029,7]
[426431439,1782383659000,-500.0,0.00029,7]
[426431440,1782383659000,-500.0,0.00029,7]
[426431441,1782383659000,-500.0,0.00029,7]
[426431442,1782383659000,-500.0,0.00029,7]
[426431443,1782383659000,-500.0,0.00029,7]
[426431445,1782383659000,-500.0,0.00029,7]
[426431446,1782383659000,-500.0,0.00029,7]
[426431448,1782383659000,-500.0,0.00029,7]
[426431447,1782383659000,-500.0,0.00029,7]
[426431451,1782383659000,-500.0,0.00029,7]
[426431449,1782383659000,-500.0,0.00029,7]
[426431450,1782383659000,-500.0,0.00029,7]
[426431452,1782383659000,-500.0,0.00029,7]
[426431455,1782383659000,-500.0,0.00029,7]
[426431454,1782383659000,-500.0,0.00029,7]
[426431461,1782383659000,-500.0,0.00029,7]
[426431456,1782383659000,-500.0,0.00029,7]
[426431458,1782383659000,-500.0,0.00029,7]
[426431457,1782383659000,-500.0,0.00029,7]
[426431459,1782383659000,-500.0,0.00029,7]
[426431460,1782383659000,-500.0,0.00029,7]
[426431464,1782383659000,-500.0,0.00029,7]
[426431462,1782383659000,-500.0,0.00029,7]
[426431463,1782383659000,-500.0,0.00029,7]
[426431436,1782383659000,-500.0,0.00029,7]
[426431434,1782383659000,-500.0,0.00029,7]
[426431402,1782383659000,-500.0,0.00029,2]
[426431433,1782383659000,-528.89720843,0.00029,2]
[426431406,1782383659000,-500.0,0.00029,2]
[426431403,1782383659000,-500.0,0.00029,2]
[426431407,1782383659000,-500.0,0.00029,2]
[426431408,1782383659000,-500.0,0.00029,2]
[426431410,1782383659000,-500.0,0.00029,2]
[426431409,1782383659000,-500.0,0.00029,2]
[426431411,1782383659000,-500.0,0.00029,2]
[426431435,1782383659000,-500.0,0.00029,7]
[426431414,1782383659000,-500.0,0.00029,2]
[426431412,1782383659000,-500.0,0.00029,2]
[426431419,1782383659000,-500.0,0.00029,2]
[426431416,1782383659000,-500.0,0.00029,2]
[426431418,1782383659000,-500.0,0.00029,2]
[426431415,1782383659000,-500.0,0.00029,2]
[426431413,1782383659000,-500.0,0.00029,2]
[426431420,1782383659000,-500.0,0.00029,2]
[426431417,1782383659000,-500.0,0.00029,2]
[426431427,1782383659000,-10000.0,0.00029,2]
[426431431,1782383659000,-500.0,0.00029,7]
[426431432,1782383659000,-500.0,0.00029,7]
[426431429,1782383659000,-500.0,0.00029,7]
[426431426,1782383659000,-608.21,0.00029,2]
[426431428,1782383659000,-500.0,0.00029,7]
[426431425,1782383659000,-500.0,0.00029,2]
[426431424,1782383659000,-500.0,0.00029,2]
[426431423,1782383659000,-500.0,0.00029,2]
[426431421,1782383659000,-500.0,0.00029,2]
[426431422,1782383659000,-500.0,0.00029,2]
[426431430,1782383659000,-584.23,0.00029,7]
[426431503,1782383660000,-1219.06991276,0.00029223,2]